Cogmind - Beta 14 @@@ ROGUE MODE // 2025.03.09 @ 14:36:17 Player: LightKnight Result: Destroyed by Autobeam Turret with Autobeam Performance ------------- Evolutions (0) 0 Regions Visited (3) 600 Robots Destroyed (16) 80 Value Destroyed (290) 290 Prototype IDs (2) 40 Alien Tech Used (0) 0 Bonus (116) 116 TOTAL SCORE: 1126 Bonus ------- Follower Combat Kills 116 Cogmind --------- Core Integrity 0/250 Matter 283/300 Energy 149/200 System Corruption 0% Temperature Cool (18) Movement Walking (120) Location -10/Subcaves Parts ------- > --- POWER (1) -------- Subdweller Power Source > --- PROPULSION (2) --- Aluminum Leg Aluminum Leg > --- UTILITY (2) ------ Disposable Heat Sink Small Storage Unit > --- WEAPON (2) ------- Heavy Riot Gun Subdweller Machine Gun > --- INVENTORY (8) ---- Subdweller Monowheel Disposable Heat Sink Subdweller Optics Makeshift Hacking Suite Subdweller Laser Mining Laser Peak State ------------ > --- POWER ------------ Subdweller Power Source > --- PROPULSION ------- Aluminum Leg Aluminum Leg > --- UTILITY ---------- Disposable Heat Sink Small Storage Unit > --- WEAPON ----------- Heavy Riot Gun Subdweller Machine Gun > --- INVENTORY -------- Aluminum Leg Subdweller Monowheel Disposable Heat Sink Subdweller Optics Makeshift Hacking Suite Subdweller Laser Mining Laser [Rating: 14] Favorites ----------- Power Ion Engine Engine Ion Engine Propulsion Aluminum Leg Leg Aluminum Leg Utility Small Storage Unit Device Disposable Heat Sink Storage Small Storage Unit Weapon Subdweller Machine Gun Energy Gun Subdweller Laser Ballistic Gun Subdweller Machine Gun Special Weapon Flamer Build | -11 -10 -10 -10 ------- Run | Yrd Mat Min Sub Slots Evolved . | . . . . Power . | . . . . Propulsion . | . . . . Utility . | . . . . Weapon . | . . . . Parts Attached 20 | 1 2 3 14 Power 6 | . 1 . 5 Engine 6 | . 1 . 5 Core . | . . . . Reactor . | . . . . Propulsion 3 | . . 1 2 Treads . | . . . . Leg 3 | . . 1 2 Wheel . | . . . . Hover . | . . . . Flight . | . . . . Utility 2 | . . 1 1 Device 2 | . . 1 1 Storage . | . . . . Processor . | . . . . Hackware . | . . . . Protection . | . . . . Artifact . | . . . . Weapon 9 | 1 1 1 6 Energy Gun 5 | 1 1 1 2 Energy Cannon . | . . . . Ballistic Gun 2 | . . . 2 Ballistic Cannon . | . . . . Launcher . | . . . . Special Weapon 2 | . . . 2 Impact Weapon . | . . . . Slashing Weapon . | . . . . Piercing Weapon . | . . . . Special Melee Weapon . | . . . . Unidentified Prototypes . | . . . . Parts Lost 2 | . . . 2 Power 1 | . . . 1 Propulsion 1 | . . . 1 Utility . | . . . . Weapon . | . . . . Highest Loss Streak 2 | . . . 2 To Critical Strikes . | . . . . Average Slot Usage (%) 96 | . 85 90 99 Engine 13 | . 14 14 13 Leg 28 | . 28 28 28 Device 11 | . . 5 14 Storage 14 | . 14 14 14 Energy Gun 18 | . 28 28 14 Ballistic Gun 7 | . . . 10 Special Weapon 1 | . . . 2 Peak Build Rating 14 | 6 6 10 14 Average Rating 10 | 6 6 7 11 On Entrance 7 | 6 6 6 10 Naked Turns . | . . . . Heaviest Build 19 | 11 14 16 19 Greatest Support 20 | 20 20 20 20 Greatest Overweight (x) . | . . . . Average Overweight (x) . | . . . . Largest Inventory Capacity 8 | 8 8 8 8 Average Capacity 8 | 8 8 8 8 Most Carried 8 | 6 8 8 8 Average Carried 7 | 6 7 7 7 Final Capacity 8 | 8 8 8 8 Final Carried 8 | 6 8 8 6 Class Distribution -------------------- 76% | Mutant 23% | Scavenger-Mutant Dominant Class ---------------- Mutant | -10/Materials Mutant | -10/Mines Mutant | -10/Subcaves Resources | -11 -10 -10 -10 ----------- Run | Yrd Mat Min Sub Matter Collected 461 | 200 58 52 151 Remotely . | . . . . Salvage Created 316 | . 58 51 207 Parts 28 | . 4 7 17 Haulers Intercepted . | . . . . Recyclers Shooed . | . . . . Parts Field Recycled . | . . . . Retrieved Matter . | . . . . Parts Self-Destructed 15 | . . . 15 Prevented . | . . . . Kills | -11 -10 -10 -10 ------- Run | Yrd Mat Min Sub Combat Hostiles Destroyed 16 | . 3 3 10 Guns 12 | . 3 3 6 Cannons 3 | . . . 3 AOE 1 | . . . 1 Classes Destroyed 2 | . 1 . 1 Swarmer 12 | . 3 3 6 Subdweller 4 | . . . 4 Best Kill Streak 4 | . 3 2 4 Combat Bots Only 4 | . 3 2 4 Max Kills in Single Turn 1 | . 1 1 1 Gunslinging . | . . . . Exploded 1 | . . . 1 Melee . | . . . . Uniques/NPCs Destroyed . | . . . . Combat | -11 -10 -10 -10 -------- Run | Yrd Mat Min Sub Hostile Shots Fired 103 | . 16 14 73 Missed 32 | . 5 5 22 Damage Taken 799 | . 90 88 621 Core 252 | . 28 29 195 Absorbed by Shields . | . . . . Core Remaining (%) 100 | 100 . . . Volleys Fired 43 | . 6 9 28 Largest 2 | . 2 2 2 Hottest 165 | . 80 105 165 Shots Fired 82 | . 12 18 52 Gun 69 | . 12 18 39 Cannon . | . . . . Launcher . | . . . . Special 13 | . . . 13 Kinetic 15 | . . . 15 Thermal 45 | . 6 9 30 Explosive . | . . . . Electromagnetic 22 | . 6 9 7 Robot Hit Streak 12 | . 2 2 12 Robot Miss Streak 5 | . 2 4 5 Penetration Max . | . . . . Secondary Targets 2 | . . 1 1 Max Gunslinging Chain 1 | . . 1 1 Shots Hit Robots 46 | . 5 8 33 Core Hits 20 | . 3 3 14 Critical Kills . | . . . . Critical Parts Destroyed . | . . . . Critical Strikes 1 | . . . 1 Burn 1 | . . . 1 Melee Attacks . | . . . . Impact . | . . . . Slashing . | . . . . Piercing . | . . . . Sneak Attacks . | . . . . Combat Hostiles . | . . . . Follow-up Attacks . | . . . . Damage Inflicted 787 | . 54 119 614 Guns 627 | . 54 119 454 Cannons . | . . . . Explosions 85 | . . . 85 Melee . | . . . . Ramming . | . . . . Kinetic 163 | . . . 163 Thermal 484 | . 10 83 391 Explosive . | . . . . Electromagnetic 140 | . 44 36 60 Impact . | . . . . Slashing . | . . . . Piercing . | . . . . Highest Corruption . | . . . . Average Corruption . | . . . . Corruption Purged . | . . . . Corruption Blocked . | . . . . Overload Shots . | . . . . Overflow Damage 15 | . . . 15 Projectiles . | . . . . Explosions 15 | . . . 15 Melee . | . . . . Knockbacks . | . . . . Impact . | . . . . Kinetic . | . . . . Secondary . | . . . . Self-Inflicted Damage 37 | . . . 37 Shots 1 | . . . 1 Rammed . | . . . . Targets Rammed . | . . . . Kicked . | . . . . Crushed . | . . . . Highest Temperature 108 | . 108 69 40 Average Temperature 32 | . 56 26 18 Received Heat Transfer 162 | . . 9 153 Siege Activations . | . . . . Robots Corrupted . | . . . . Combat Hostiles . | . . . . Parts Fried . | . . . . Impact Corruptions . | . . . . Robots Melted . | . . . . Combat Hostiles . | . . . . Parts Melted 2 | . . . 2 Heat Transferred 1464 | . 25 222 1217 Parts Sabotaged . | . . . . Parts Stolen . | . . . . Parts Stripped . | . . . . Power Chain Reactions 2 | . . . 2 Alert | -11 -10 -10 -10 ------- Run | Yrd Mat Min Sub Peak Influence 323 | . 85 323 . Initial 33 | . . 33 . Average 143 | . 51 179 . Maximum Alert Level 1 | . . 1 . Low Security (%) 67 | 100 100 54 . Level 1 32 | . . 45 . Level 2 . | . . . . Level 3 . | . . . . Level 4 . | . . . . Level 5 . | . . . . High Security . | . . . . Max Security . | . . . . Squads Dispatched . | . . . . Investigation . | . . . . Extermination . | . . . . Reinforcement . | . . . . Assault . | . . . . Garrison . | . . . . Intercept . | . . . . Searches Triggered . | . . . . Construction Impeded . | . . . . Haulers Reinforced . | . . . . Active Scanning Responses . | . . . . Cargo Convoy Interrupts . | . . . . Stealth | -11 -10 -10 -10 --------- Run | Yrd Mat Min Sub Distress Signals . | . . . . Communications Jammed . | . . . . Distress Signals . | . . . . Times Spotted 28 | . 3 10 15 Peak Tracking Total 4 | . 3 3 4 Tactical Retreats 5 | . 1 1 3 Traps | -11 -10 -10 -10 ------- Run | Yrd Mat Min Sub Traps Triggered 2 | . . . 2 Indirectly . | . . . . Trap Hack Attempts . | . . . . Triggered . | . . . . Disarmed . | . . . . Reprogrammed . | . . . . Reused . | . . . . Traps Extracted . | . . . . Installed 1 | . . . 1 Triggered . | . . . . Machines | -11 -10 -10 -10 ---------- Run | Yrd Mat Min Sub Machines Disabled 2 | . . 1 1 Max in Single Turn 1 | . . 1 1 Machines Repaired . | . . . . Machines Dismantled . | . . . . Machines Sabotaged . | . . . . Overloaded Fab Kills . | . . . . Hacking | -11 -10 -10 -10 --------- Run | Yrd Mat Min Sub Machines Accessed 3 | . 2 . 1 Terminals 2 | . 2 . . Fabricators . | . . . . Repair Stations . | . . . . Recycling Units . | . . . . Scanalyzers . | . . . . Garrison Access . | . . . . Total Hacks 7 | . 3 . 4 Successful 6 | . 2 . 4 Failed 1 | . 1 . . Catastrophic . | . . . . Database Lockouts . | . . . . Manual 1 | . 1 . . Terminals 3 | . 3 . . Fabricators . | . . . . Repair Stations . | . . . . Recycling Units . | . . . . Scanalyzers . | . . . . Garrison Access . | . . . . Terminal Hacks 6 | . 2 . 4 Record 4 | . . . 4 Prototype ID Bank 1 | . 1 . . Branch Access Points 1 | . 1 . . Fabricator Hacks . | . . . . Repair Station Hacks . | . . . . Recycling Unit Hacks . | . . . . Scanalyzer . | . . . . Garrison Access Hacks . | . . . . Unauthorized Hacks . | . . . . Terminals . | . . . . Fabricators . | . . . . Repair Stations . | . . . . Recycling Units . | . . . . Scanalyzers . | . . . . Garrison Access . | . . . . Data Cores Recovered . | . . . . Used . | . . . . Hacking Detections 1 | . 1 . . Full Trace Events . | . . . . Feedback Events . | . . . . Feedback Blocked . | . . . . Robot Schematics Acquired . | . . . . Robots Built . | . . . . Authchips . | . . . . Time . | . . . . Total Robot Build Rating . | . . . . Part Schematics Acquired . | . . . . Parts Built . | . . . . Authchips . | . . . . Time . | . . . . Total Part Build Rating . | . . . . Parts Repaired . | . . . . Time . | . . . . Parts Recycled . | . . . . Recycled Matter . | . . . . Retrieved Matter . | . . . . Retrieved Components . | . . . . Parts Scanalyzed . | . . . . Part Schematics Acquired . | . . . . Parts Damaged . | . . . . Bothacking | -11 -10 -10 -10 ------------ Run | Yrd Mat Min Sub Used RIF Installer . | . . . . Robots Hacked . | . . . . Non-combat . | . . . . Combat . | . . . . Robot Hacks Applied . | . . . . Relay Couplers Released . | . . . . Fabnet Peak Effective % . | . . . . Robots Rewired . | . . . . Allies Hacked . | . . . . Hacks Repelled . | . . . . Allies | -11 -10 -10 -10 -------- Run | Yrd Mat Min Sub Total Allies 3 | . . 3 . Largest Group 3 | . . 3 2 Highest-Rated Group 40 | . . 40 24 Highest-Rated Ally 16 | . . 16 16 Total Orders . | . . . . Ally Attacks 30 | . . 23 7 Total Damage 330 | . . 252 78 Kills 6 | . . 6 . Allies Corrupted . | . . . . Allies Melted . | . . . . Intel | -11 -10 -10 -10 ------- Run | Yrd Mat Min Sub Robot Analysis Total . | . . . . Derelict Logs Recovered 3 | . . 1 2 Drone Launches . | . . . . Drone Recoveries . | . . . . Exploration | -11 -10 -10 -10 ------------- Run | Yrd Mat Min Sub Turns Passed 2471 | 2 185 478 1806 Spaces Moved 1882 | 1 131 366 1384 Core . | . . . . Treads . | . . . . Legs 1882 | 1 131 366 1384 Wheels . | . . . . Hover . | . . . . Flight . | . . . . Fastest Speed 120 | 120 120 120 120 Average Speed 120 | 120 120 120 120 Slowest Speed 120 | 120 120 120 120 Overloaded Moves . | . . . . Propulsion Burnouts . | . . . . Robots Hopped . | . . . . Cave-ins Triggered . | . . . . Exploration Rate (%) 44 | 2 23 88 63 Regions Visited 3 Branch Regions 2 Pre-discovered Areas 1 | . . . 1 Known Exits Taken 1 | . 1 . . Unknown Exits Taken 2 | 1 . 1 . Scrap Searched 10 | . . 1 9 Spaces Dug . | . . . . Terrain Destroyed 7 | . . . 7 Melee . | . . . . Projectile . | . . . . AOE 7 | . . . 7 Terrain Rammed . | . . . . Walls Destroyed . | . . . . Machines Disabled . | . . . . Actions | -11 -10 -10 -10 --------- Run | Yrd Mat Min Sub Total 2006 | 1 146 390 1469 Wait 16 | . 5 3 8 Move 1879 | . 130 365 1384 Hop . | . . . . Pick Up 18 | . 2 4 12 Fast Attach 4 | . . 1 3 Attach 2 | . . . 2 Detach 3 | . . . 3 Swap 14 | 1 2 2 9 Drop 26 | . 1 6 19 Fire 43 | . 6 9 28 Melee . | . . . . Ram . | . . . . Kick . | . . . . Crush . | . . . . Escape Stasis . | . . . . Rewire . | . . . . Trap 1 | . . . 1 Miscellaneous . | . . . . Route ------- -11/Scrapyard -10/Materials (discovered 2 exits: *Min x2) -10/Mines (discovered 3 exits: [*Mat x2] / *Sub) -10/Subcaves (discovered 3 exits: [*Mat x2] / *Rec) History --------- Turn | Location | Event 3 | -11/Scrapyard | Discovered new exit (range 0) 3 | -11/Scrapyard | Entered Materials 139 | -10/Materials | Identified exit to Mines 188 | -10/Materials | Entered Mines 203 | -10/Mines | Discovered new exit (range 7) 210 | -10/Mines | Met a Derelict bent on vengeance 272 | -10/Mines | Assisted by bots powering up and referring to "LRC-V3" 314 | -10/Mines | Build established: Mutant 334 | -10/Mines | Discovered new exit (range 9) 661 | -10/Mines | Discovered new exit (range 3) 666 | -10/Mines | Entered Subcaves 666 | -10/Subcaves | Accompanied by 2 allies 670 | -10/Subcaves | Learned 8 Materials zone layouts 684 | -10/Subcaves | Shifting Twisted Machinery released Battle Cannon 692 | -10/Subcaves | Shifting Twisted Machinery released Mak. Kinetic Plating 700 | -10/Subcaves | A swath of the cavern ceiling suddenly collapsed 967 | -10/Subcaves | Discovered new exit (range 15) 1015 | -10/Subcaves | Discovered new exit (range 6) 1124 | -10/Subcaves | Core integrity fell below 50% 1225 | -10/Subcaves | Learned location of Zion (-6) 1225 | -10/Subcaves | Met a Zionite searching for "candidates" 1384 | -10/Subcaves | Learned Materials terminal intel 1660 | -10/Subcaves | Shifting Twisted Machinery released Battle Cannon 1676 | -10/Subcaves | Build established: Scavenger-Mutant 2027 | -10/Subcaves | A swath of the cavern ceiling suddenly collapsed 2106 | -10/Subcaves | Build established: Mutant 2239 | -10/Subcaves | Shifting Twisted Machinery released Sub. Power Source 2260 | -10/Subcaves | Visited Clippyterm 2263 | -10/Subcaves | Identified exit to Recycling 2263 | -10/Subcaves | Learned Research security intel 2447 | -10/Subcaves | Core integrity fell below 20% 2472 | -10/Subcaves | Destroyed by Autobeam Turret with Autobeam Last Messages --------------- 02444_ Corrupted Lgt. Ion Engine fries itself beyond repair. 02444_ Machine disabled. 02447_ Acquired 2 matter. 02448_ Ion Engine destroyed. 02449_ Acquired 2 matter. 02449_ Flight Unit fries itself beyond repair. 02451_ Chain reaction triggered in Lgt. Ion Engine. 02451_ S-10 Pest destroyed. 02451_ Destroyed Flight Unit. 02452_ Acquired 2 matter. 02454_ Subatomizers dissect the Sub. Machine Gun. 02455_ S-10 Pest destroyed. 02466_ Subatomizers dissect the Sub. Machine Gun. 02467_ Lgt. Ion Engine fries itself beyond repair. 02468_ Aluminum Leg destroyed. Map ----- +----------------------------------------------------+ | # ## ## #??##????????????????????? | | ## ###???????????????????????? | | # &! #???????????????????????? | | ##### [%& #???????????????????????? | | ####?## &*& #?####????#####?????????? | | # ##???# ### ##??##*#%##????????? | | ## ###### ## ##?#%&% =#????????? | | ?# #### ##### #?##"&###????????? | | ?# #####???# #?###%%#####?????? | | ?# ##?????#### #?# # ## #?????? | | ###### # #???????## ## ### "!" ##????? | | ##?## ####?????# ## *= #????? | | #?# ## # ##????## ### ### #????? | | #?# ### # ! ##????# ### ##? ##????? | | #### ### &%#???## ## ## #??###?????? | | * ##### ### ## ##??????##### | | # # %&# ## ### #??????## # | | ## ######### [ % ######?# ##?????# # | | ### #???????# [ ## #?????# #??????# | | "## #????#### ; #######?????# ####???## | | "##" ##??### # ########??## ## #??## | | ""##& #??# # %;##" """#?### # #?## | | "## ### # # "### % #?# | | ###" " ### ; "## %###### | | ??# " #?# %% t""### ##?### # | | #?# " ####### @ >## #??# ## | | ### & #????##;# t""### ##?# ##? | | #### #?????##### "### ### ##?? | | # ##????????# "## ##??? | | ##???????#" ""### ##???? | | #???????########?## #????? | | ### ##?????????????????##### ####?? | | ##?# #####??????????????????????#### ##? | | #??####?????????????????????????????## #? | | #?## ##??????????????????????????????# #? | | ### ##????????????????????????????## #? | | ## #????????????????????????????# ##? | | #????????????????????????????# ##? | | # #????????????????????????????# ## | | # ##????????????????????????????### | | # ## ##??????????????????????????????## | | #### #????????????????????????????#### | | #??# ##????????????????????????????# | | #??# ###?????????????????????????????## | | ## #??# #???????????????????????????????## & | | ?# #??###???????????????????????????????# =% | | ?###????????????????????????????????????## *% | | ?????????????????????????????????#####???### = | | ??????????????????????????????#### #?????# =% | | ?????????????????????????????## ##????# ! | +----------------------------------------------------+ Best States ------------- Heat Dissipation 39 Coolant Potential 50 Energy Generation 15 Energy Capacity 250 Matter Stores 300 Matter Capacity 300 Sight Range 16 Terrain Scan Density 10 Evasion (%) 55 Item Schematics ----------------- None Robot Schematics ------------------ None Fabricated ------------ Nothing Alien Tech Used ----------------- None Achievements -------------- None Challenges ------------ None Game ------ Seed GreatNavigationFacilitator Manual? 0 Play Time 00:25:12 Cumulative 191.6 hours Start 2025.03.09 @ 12:48:30 End 2025.03.09 @ 14:36:17 Sessions 2 Manual Loads 0 Difficulty Rogue Special Mode None Game No. 137 Rogue 137 Adventurer 0 Explorer 0 Win Type - Total 10 Types 10/0/0/0/0/0/0/0/0 Lore% 77 Gallery% 68 Achievement% 53 Wizard Run 0 Options --------- Layout 2 ASCII 1 Keyboard 1 Movement Arrows Keybinds 0 Fullscreen 1 Font 24/Proggy Map View 50x44 Zoom Use 0% Tactical HUD 1 Map Filters NONE Filters NONE Steam 1 RUN: 9bcfb028-8e91-45e5-88b0-5ffb6b67421a